Cogmind - Beta 17 @@@ ROGUE MODE // 2026.07.01 @ 14:10:58 Player: Nalesnig Result: Destroyed by Fortress with Enhanced Nova Cannon Performance ------------- Evolutions (7) 3500 Regions Visited (12) 2400 Robots Destroyed (107) 535 Value Destroyed (4957) 4957 Prototype IDs (22) 440 Alien Tech Used (5) 1000 Bonus (7897) 7897 TOTAL SCORE: 20729 Bonus ------- High Alert Combat Kills 94 Follower Combat Kills 252 Registered with UFD 300 Met Optimus in HQ 500 Met Warlord at Base 500 MAIN.C Attacked Warlord 500 Warlord Defense Kills 324 Used Core Reset Matrix 3000 Scanned by Researcher 500 Met Sigix 2000 Friendly Fire -73 Cogmind --------- Core Integrity 0/1300 Matter 29/300 Energy 335/700 System Corruption 0% Temperature Cool (11) Movement Flying (40) Location -3/Quarantine Parts ------- > --- POWER (2) -------- (None) > --- PROPULSION (6) --- Improved Linear Gravjet Q-thruster > --- UTILITY (10) ----- Experimental Energy Well Experimental Thermal Defense Suite > --- WEAPON (3) ------- (None) > --- INVENTORY (5) ---- Mapping Drone Bay (3/3) Subatomic Replicator Helical Railgun Sigix Containment Pod Peak State ------------ > --- POWER ------------ Micro Fission Core Micro Fission Core > --- PROPULSION ------- Cooled Gravmag System Combat Gravmag System Combat Gravmag System Improved Antigrav System Cooled Antigrav System Cooled Antigrav System > --- UTILITY ---------- Experimental Power Amplifier Improved Cryofiber Web Large Storage Unit Long-range Sensor Array Improved Signal Interpreter Improved Target Analyzer Enhanced Scrap Shield Experimental Shield Generator Advanced Hacking Suite > --- WEAPON ----------- Cooled Plasma Cannon KE Penetrator KE Penetrator > --- INVENTORY -------- Micro Antimatter Reactor Improved Antigrav System Advanced Cooling System Experimental Coolant Injector Long-range Terrain Scanner Surveybot 17 Chip Seismic Detector Experimental Phase Shifter Mapping Drone Bay Phase Gun Vortex Driver Vortex Driver Helical Railgun Vortex Catalyst Activator [Rating: 142] Favorites ----------- Power Micro Fission Core Engine Ion Engine Power Core Micro Fission Core Reactor Antimatter Reactor Propulsion Light Treads Treads Light Treads Wheel Wheel Hover Unit Combat Gravmag System Flight Unit Q-thruster Utility Large Storage Unit Device Improved Cryofiber Web Storage Large Storage Unit Processor Improved Signal Interpreter Hackware Advanced Hacking Suite Protection Reflective Plating Weapon KE Penetrator Energy Gun Phase Gun Energy Cannon Cooled Plasma Cannon Ballistic Gun KE Penetrator Ballistic Cannon Light Cannon Launcher Heavy Shock Bomb Launcher Impact Weapon Impact Mace Slashing Weapon Chainsword Build | -11 -10 -10 -7 -7 -5 -4 -4 -4 -4 -3 -3 -3 ------- Run | Yrd Mat Sub Rec Scr Fac Fac Upp Upp War Pro Res Qua Slots Evolved 14 | . . . . . 10 2 . . . . 2 . Power 1 | . . . . . 1 . . . . . . . Propulsion 4 | . . . . . 2 1 . . . . 1 . Utility 8 | . . . . . 6 1 . . . . 1 . Weapon 1 | . . . . . 1 . . . . . . . Parts Attached 110 | 7 7 3 4 3 28 26 3 2 7 1 10 9 Power 11 | 1 2 . . . 2 3 1 . 1 . 1 . Engine 3 | 1 2 . . . . . . . . . . . Core 6 | . . . . . 2 2 1 . 1 . . . Reactor 2 | . . . . . . 1 . . . . 1 . Propulsion 29 | 2 1 1 . 2 4 9 1 . 2 . 2 5 Treads 10 | 2 1 . . 1 3 3 . . . . . . Leg . | . . . . . . . . . . . . . Wheel 3 | . . 1 . 1 . 1 . . . . . . Hover 15 | . . . . . 1 5 1 . 2 . 2 4 Flight 1 | . . . . . . . . . . . . 1 Utility 42 | 2 3 1 2 . 13 9 1 2 2 . 5 2 Device 26 | 1 1 1 . . 8 6 . 2 2 . 4 1 Storage 5 | 1 2 . . . . 1 . . . . . 1 Processor 3 | . . . . . 2 1 . . . . . . Hackware 1 | . . . . . 1 . . . . . . . Protection 7 | . . . 2 . 2 1 1 . . . 1 . Artifact . | . . . . . . . . . . . . . Weapon 28 | 2 1 1 2 1 9 5 . . 2 1 2 2 Energy Gun 2 | 1 . . . . . . . . 1 . . . Energy Cannon 5 | . . . . . 4 1 . . . . . . Ballistic Gun 12 | 1 . 1 . . 3 3 . . 1 1 1 1 Ballistic Cannon 3 | . 1 . 1 . 1 . . . . . . . Launcher 2 | . . . . . . 1 . . . . 1 . Special Weapon . | . . . . . . . . . . . . . Impact Weapon 1 | . . . . . 1 . . . . . . . Slashing Weapon 3 | . . . 1 1 . . . . . . . 1 Piercing Weapon . | . . . . . . . . . . . . . Special Melee Weapon . | . . . . . . . . . . . . . Unidentified Prototypes 21 | . . 1 . . 5 . 1 . 4 . 3 7 Parts Lost 45 | . 4 3 . . 5 9 3 . 1 . 16 4 Power 5 | . 1 . . . . 1 . . 1 . 2 . Propulsion 15 | . 1 1 . . . 3 2 . . . 5 3 Utility 14 | . 1 1 . . 3 3 1 . . . 5 . Weapon 11 | . 1 1 . . 2 2 . . . . 4 1 Highest Loss Streak 13 | . 2 1 . . 3 2 1 . 1 . 13 2 To Critical Strikes . | . . . . . . . . . . . . . Average Backups 11 | 3 8 12 13 11 12 14 12 12 12 13 13 4 Power . | . . . . . . . 2 2 1 1 . . Propulsion 2 | 1 2 3 4 2 2 3 1 1 1 1 . . Utility 4 | . 3 6 5 3 4 3 4 5 5 5 6 1 Weapon 4 | . 1 2 4 4 5 7 4 4 4 5 4 1 Tool/Special . | . . . . . . . . . . . . . Unused Backups 35 | . 1 1 1 8 9 . 2 . 4 1 6 2 Power 2 | . 1 . . . . . . . . 1 . . Propulsion 6 | . . . . 3 1 . . . 1 . 1 . Utility 8 | . . 1 1 1 2 . . . 1 . 2 . Weapon 16 | . . . . 4 5 . 2 . 2 . 3 . Tool/Special 3 | . . . . . 1 . . . . . . 2 Average Slot Usage (%) 91 | . 99 98 95 99 92 93 95 89 87 94 84 13 Engine 5 | . 13 14 14 14 . . . . . . . . Core 5 | . . . . . 9 5 10 10 10 10 8 . Treads 12 | . 27 26 14 10 16 15 . . . . . . Wheel 3 | . . 1 14 17 2 . . . . . . . Hover 7 | . . . . . . 6 24 21 22 26 25 4 Device 15 | . 13 13 . . 22 23 20 19 15 15 16 1 Storage 8 | . 14 14 14 14 5 5 5 5 5 5 3 3 Processor 4 | . . . . . 4 5 10 10 10 10 8 . Hackware 2 | . . . . . 3 5 5 5 5 5 3 . Protection 4 | . . . 11 14 5 5 2 1 1 4 3 . Energy Cannon 2 | . . . . . 5 4 5 5 . 2 3 . Ballistic Gun 8 | . 14 13 11 . 6 9 9 10 10 10 7 . Ballistic Cannon 4 | . 7 14 11 13 2 . . . . . . . Slashing Weapon 1 | . . . 2 14 . . . . . . . 1 Peak Build Rating 142 | 7 8 12 15 20 97 115 111 107 126 126 142 86 Average Rating 63 | 5 7 10 11 16 80 103 105 102 106 122 123 35 On Entrance 54 | . 7 7 9 13 19 94 109 99 96 126 123 3 Avg Prop Armor Cover (%) 9 | . . 11 9 10 12 2 . . . . 1 22 Naked Turns 83 | . . . . . . . . . . . 72 11 Heaviest Build 86 | 12 31 33 39 38 77 86 63 66 65 66 75 20 Greatest Support 160 | 40 40 40 10 40 130 160 61 50 65 65 91 48 Greatest Overweight (x) 8 | . . 3 3 3 2 8 1 1 1 1 . 3 Average Overweight (x) . | . . . 3 2 . . . 1 . . . . Largest Inventory Capacity 15 | 8 15 15 15 15 15 15 15 15 15 15 15 5 Average Capacity 14 | 7 14 15 15 15 15 15 15 15 15 15 14 5 Most Carried 15 | 4 11 15 15 15 15 15 15 15 15 15 15 5 Average Carried 12 | 3 8 12 14 12 14 14 14 13 14 14 13 4 Final Capacity 15 | 8 15 15 15 15 15 15 15 15 15 15 5 5 Final Carried 15 | 4 9 15 15 15 15 14 14 15 15 15 5 5 Class Distribution -------------------- 48% | Mutant 29% | Scavenger-Skirmisher 12% | Tank 3% | Skirmisher Dominant Class ---------------- Mutant | -10/Materials Mutant | -10/Subcaves Mutant | -7/Recycling Mutant | -7/Scraptown Tank | -5/Factory Scavenger-Skirmisher | -4/Factory Scavenger-Skirmisher | -4/Upper Caves Scavenger-Skirmisher | -4/Upper Caves Scavenger-Skirmisher | -4/Warlord Scavenger-Skirmisher | -3/Proximity Caves Scavenger-Skirmisher | -3/Research Mutant | -3/Quarantine Resources | -11 -10 -10 -7 -7 -5 -4 -4 -4 -4 -3 -3 -3 ----------- Run | Yrd Mat Sub Rec Scr Fac Fac Upp Upp War Pro Res Qua Matter Collected 3502 | 288 313 333 33 49 753 720 274 152 169 159 199 60 Remotely . | . . . . . . . . . . . . . Salvage Created 4823 | 83 649 . 54 . 1290 1178 138 86 136 195 954 60 Parts 250 | 11 47 . 4 . 59 50 6 6 11 6 46 4 Haulers Intercepted 5 | . 2 . . . 2 . . . . . 1 . Recyclers Shooed 5 | 1 1 . . . . 2 . . . . 1 . Parts Field Recycled . | . . . . . . . . . . . . . Retrieved Matter . | . . . . . . . . . . . . . Parts Self-Destructed 37 | . . 16 . . . . 9 4 . 8 . . Prevented . | . . . . . . . . . . . . . Parts Restored . | . . . . . . . . . . . . . Kills | -11 -10 -10 -7 -7 -5 -4 -4 -4 -4 -3 -3 -3 ------- Run | Yrd Mat Sub Rec Scr Fac Fac Upp Upp War Pro Res Qua Combat Hostiles Destroyed 85 | . 18 . . . 23 17 3 1 3 2 17 1 Guns 41 | . 15 . . . 5 9 2 1 3 2 3 1 Cannons 26 | . 3 . . . 15 7 . . . . 1 . AOE 15 | . . . . . 2 . 1 . . . 12 . Classes Destroyed 16 | 1 3 . 1 . 7 1 . . 2 1 . . Worker 3 | . . . . . 1 2 . . . . . . Builder 3 | . . . . . 1 . . . . . 2 . Tunneler 4 | 4 . . . . . . . . . . . . Hauler 5 | . 2 . . . 2 . . . . . 1 . Recycler 2 | . . . 1 . . . . . . . 1 . Minesweeper 1 | . . . . . . . . . . 1 . . Operator 1 | . . . . . 1 . . . . . . . Watcher 3 | . . . . . 2 . . . . . 1 . Swarmer 22 | . 6 . . . 10 . 2 . . . 4 . Saboteur 1 | . . . . . . . . . 1 . . . Grunt 34 | . 12 . . . 4 7 1 . . 2 7 1 Duelist 1 | . . . . . . 1 . . . . . . Sentry 5 | . . . . . 3 1 . 1 . . . . Specialist 1 | . . . . . . . . . 1 . . . Hunter 2 | . . . . . 2 . . . . . . . Programmer 19 | . . . . . 4 8 . . 1 . 6 . Best Kill Streak 16 | 2 4 . 1 . 8 5 2 1 2 2 16 1 Combat Bots Only 12 | . 4 . . . 7 4 2 1 2 2 12 1 Max Kills in Single Turn 6 | 1 2 . 1 . 2 2 1 1 1 1 6 1 Gunslinging 1 | . 1 . . . . . . . . . . . Exploded 6 | . . . . . 2 . 1 . . . 6 . Melee . | . . . . . . . . . . . . . Uniques/NPCs Destroyed . | . . . . . . . . . . . . . Combat | -11 -10 -10 -7 -7 -5 -4 -4 -4 -4 -3 -3 -3 -------- Run | Yrd Mat Sub Rec Scr Fac Fac Upp Upp War Pro Res Qua Hostile Shots Fired 818 | . 94 4 . . 153 142 17 8 14 31 207 148 Missed 275 | . 23 1 . . 43 52 5 2 6 10 77 56 Hits 543 | . 71 3 . . 110 90 12 6 8 21 130 92 Melee 5 | . . . . . . 5 . . . . . . Projectile 538 | . 71 3 . . 110 85 12 6 8 21 130 92 AOE 1 | . . . . . 1 . . . . . . . Critical Strikes 25 | . 1 . . . 1 10 . . 1 2 6 4 Damage Taken 10183 | . 750 102 . . 1606 1987 586 141 294 424 2956 1337 Core 1973 | . 137 8 . . 89 192 238 . . 45 825 439 Absorbed by Shields . | . . . . . . . . . . . . . Ignored by Resistances 339 | . . . . . 339 . . . . . . . Regen/Repaired (Parts) 41 | . . . . . . . . . 41 . . . Core Remaining (%) 72 | 100 . . . 42 91 . . . . 58 . . Volleys Fired 422 | 6 61 43 1 . 73 81 45 13 9 19 50 21 Largest 3 | 2 2 1 2 . 3 3 3 3 3 3 3 1 Hottest 186 | 60 60 30 60 . 186 171 101 101 154 154 173 38 Shots Fired 760 | 12 121 48 4 . 161 179 59 22 18 37 78 21 Gun 390 | 12 105 . 2 . 53 97 15 9 17 28 31 21 Cannon 364 | . 16 48 2 . 108 81 42 13 1 9 44 . Launcher 6 | . . . . . . 1 2 . . . 3 . Special . | . . . . . . . . . . . . . Kinetic 426 | 6 77 48 4 . 81 97 15 9 16 21 31 21 Thermal 328 | 6 44 . . . 80 81 42 13 2 16 44 . Explosive . | . . . . . . . . . . . . . Electromagnetic 3 | . . . . . . 1 2 . . . . . Entropic 3 | . . . . . . . . . . . 3 . Robot Hit Streak 24 | 6 8 8 2 . 21 24 9 14 9 11 10 5 Robot Miss Streak 3 | 2 3 1 1 . 3 3 2 1 1 1 3 3 Penetration Max 1 | . . . . . 1 1 . . . . . . Secondary Targets 4 | . 3 . . . . . . . . 1 . . Max Gunslinging Chain 1 | . 1 . . . . . . . . 1 . . Shots Hit Robots 390 | 7 78 5 2 . 93 103 16 9 13 21 30 13 Core Hits 191 | 4 35 1 1 . 54 40 7 2 5 9 28 5 Critical Kills 15 | . . . . . 7 2 . . 1 1 4 . Critical Parts Destroyed 11 | . . . . . 2 1 1 . 2 4 1 . Critical Strikes 28 | . 1 . . . 10 3 1 . 3 5 5 . Meltdown 3 | . . . . . 1 1 . . . . 1 . Destroy 24 | . . . . . 9 2 1 . 3 5 4 . Blast 1 | . 1 . . . . . . . . . . . Melee Attacks 6 | . . . . . 2 . . . . . . 4 Impact 2 | . . . . . 2 . . . . . . . Slashing 4 | . . . . . . . . . . . . 4 Piercing . | . . . . . . . . . . . . . Sneak Attacks 1 | . . . . . 1 . . . . . . . Combat Hostiles . | . . . . . . . . . . . . . Follow-up Attacks . | . . . . . . . . . . . . . Damage Inflicted 14085 | 84 1012 93 52 . 3269 3322 516 239 269 484 4367 378 Guns 5616 | 84 835 . 21 . 1000 1871 245 142 269 484 378 287 Cannons 4410 | . 177 93 31 . 1964 1446 185 97 . . 417 . Explosions 3804 | . . . . . 146 . 86 . . . 3572 . Melee 223 | . . . . . 159 . . . . . . 64 Ramming 32 | . . . . . . 5 . . . . . 27 Kinetic 5678 | 40 683 93 52 . 1290 1871 245 142 269 328 378 287 Thermal 4348 | 44 329 . . . 1674 1446 185 97 . 156 417 . Explosive . | . . . . . . . . . . . . . Electromagnetic 355 | . . . . . 146 . 86 . . . 123 . Impact 159 | . . . . . 159 . . . . . . . Slashing 64 | . . . . . . . . . . . . 64 Piercing . | . . . . . . . . . . . . . Entropic 3449 | . . . . . . . . . . . 3449 . Highest Corruption 15 | . 8 8 8 . 2 3 6 6 6 1 15 15 Average Corruption 5 | . 6 8 8 . 2 1 3 6 1 1 6 15 Corruption Purged . | . . . . . . . . . . . . . Corruption Blocked . | . . . . . . . . . . . . . Effects 205 | . 14 63 13 . 15 8 26 30 3 5 8 20 Message Errors 52 | . 5 14 4 . 8 1 5 5 . 1 3 6 Matter Fused 46 | . 2 14 1 . 3 2 7 8 1 1 3 4 Heat Flow Errors 15 | . 3 4 1 . 2 1 2 1 . . . 1 Energy Discharges 26 | . 1 7 3 . 1 2 2 4 1 . . 5 Parts Rejected 1 | . . 1 . . . . . . . . . . Parts Fused 3 | . . 2 . . . . . 1 . . . . Data Loss (minor) 29 | . 2 8 2 . 1 1 5 7 1 1 . 1 Data Loss (major) 11 | . . 6 . . . . 2 2 . . . 1 Misfires 14 | . . 6 2 . . 1 3 1 . 1 . . Alerts 3 | . . . . . . . . 1 . 1 . 1 Misdirections 3 | . . . . . . . . . . . 2 1 Weapon Failures 2 | . 1 1 . . . . . . . . . . Overload Shots 10 | . . . . . 1 6 . . 1 . 2 . Effects 3 | . . . . . . 2 . . . . 1 . Heat Surge 2 | . . . . . . 1 . . . . 1 . Short Circuit 1 | . . . . . . 1 . . . . . . Overflow Damage 576 | . . . . . 86 40 . . . . 450 . Projectiles 59 | . . . . . 19 40 . . . . . . Explosions 450 | . . . . . . . . . . . 450 . Melee 67 | . . . . . 67 . . . . . . . Knockbacks 9 | . 5 . . . 3 1 . . . . . . Impact 1 | . . . . . . 1 . . . . . . Kinetic 8 | . 5 . . . 3 . . . . . . . Secondary . | . . . . . . . . . . . . . Self-Inflicted Damage 356 | . . . . . . . . . . . 345 11 Shots 3 | . . . . . . . . . . . 3 . Rammed 10 | . . . . . . 1 . . . . . 9 Targets Rammed 10 | . . . . . . 1 . . . . . 9 Kicked . | . . . . . . . . . . . . . Crushed . | . . . . . . . . . . . . . Highest Temperature 229 | . 222 229 181 . 90 150 104 . . . . 218 Average Temperature 58 | . 55 110 76 . 30 70 62 . . . . 145 Received Heat Transfer 1409 | . 315 9 . . 189 275 18 18 . 72 250 263 Siege Activations . | . . . . . . . . . . . . . Martial Activations . | . . . . . . . . . . . . . Shielding Activations . | . . . . . . . . . . . . . Robots Disrupted 3 | . . . . . 2 . . . . . 1 . Combat Hostiles 3 | . . . . . 2 . . . . . 1 . Robots Corrupted 2 | . . . . . 2 . . . . . . . Combat Hostiles . | . . . . . . . . . . . . . Parts Fried 2 | . . . . . 1 . . . . . 1 . Impact Corruptions 2 | . . . . . 2 . . . . . . . Robots Melted 3 | . . . . . 1 1 . . . . 1 . Combat Hostiles 3 | . . . . . 1 1 . . . . 1 . Parts Melted 16 | 1 . . . . 3 6 . . . . 6 . Heat Transferred 6437 | 100 725 . . . 2350 2040 300 150 . 222 550 . Parts Sabotaged . | . . . . . . . . . . . . . Parts Stolen . | . . . . . . . . . . . . . Parts Stripped . | . . . . . . . . . . . . . Power Chain Reactions . | . . . . . . . . . . . . . Alert | -11 -10 -10 -7 -7 -5 -4 -4 -4 -4 -3 -3 -3 ------- Run | Yrd Mat Sub Rec Scr Fac Fac Upp Upp War Pro Res Qua Maximum Alert Level 2 | . 1 . . . 2 . . . . . 2 2 Low Security (%) 78 | 100 93 . 100 . 59 100 . . . . 88 . Level 1 16 | . 6 . . . 27 . . . . . . 98 Level 2 5 | . . . . . 12 . . . . . 11 1 Level 3 . | . . . . . . . . . . . . . Level 4 . | . . . . . . . . . . . . . Level 5 . | . . . . . . . . . . . . . High Security . | . . . . . . . . . . . . . Max Security . | . . . . . . . . . . . . . Peak Influence 641 | 10 225 . 66 . 475 178 . . . . 641 425 Initial 360 | . . . 66 . . 139 . . . . . 360 Average 112 | . 85 . 15 . 165 54 . . . . 89 302 Influence Increases 4070 | 20 548 242 6 . 1030 647 70 20 60 55 1005 367 Destroy 0b10 Robot/C 1920 | . 360 160 . . 520 340 60 20 60 40 340 20 Destroy 0b10 Robot/NC 110 | 20 10 . 5 . 35 10 . . . 5 25 . Destroy Leader 366 | . 64 20 . . 108 70 10 . . 10 84 . Allied During Kill 81 | . . 62 1 . 18 . . . . . . . Successful Hack 122 | . 21 . . . 46 11 . . . . 37 7 Select Force Hacks 60 | . 60 . . . . . . . . . . . Disable Machine 285 | . . . . . 120 90 . . . . 30 45 Anti-Garrison Action 150 | . . . . . . . . . . . 150 . Destroy Structure 421 | . 3 . . . 138 96 . . . . 174 10 Partial Spotted 30 | . . . . . . . . . . . . 30 Lose Combat Pursuer 525 | . 30 . . . 45 30 . . . . 165 255 Influence Decreases 3645 | 20 494 157 145 . 745 866 136 20 60 55 365 582 Entered New Map 550 | . . 26 73 . . 146 25 . . . . 280 Time Decay 2296 | 20 454 92 72 . 466 501 99 20 50 55 205 262 Lost Part 379 | . 40 10 . . 50 57 12 . 10 . 160 40 Lost Ally 65 | . . 29 . . 26 10 . . . . . . Purge Threat 355 | . . . . . 203 152 . . . . . . Squads Dispatched 35 | . 5 . . . 12 6 . . . . 6 6 Investigation 11 | . 4 . . . 3 1 . . . . 2 1 Extermination 13 | . . . . . 4 5 . . . . 2 2 Reinforcement 6 | . 1 . . . 2 . . . . . . 3 Assault 2 | . . . . . . . . . . . 2 . Garrison 3 | . . . . . 3 . . . . . . . Intercept . | . . . . . . . . . . . . . Searches Triggered . | . . . . . . . . . . . . . Construction Impeded 1 | . . . . . 1 . . . . . . . Haulers Reinforced . | . . . . . . . . . . . . . Active Scanning Responses . | . . . . . . . . . . . . . Cargo Convoy Interrupts . | . . . . . . . . . . . . . Stealth | -11 -10 -10 -7 -7 -5 -4 -4 -4 -4 -3 -3 -3 --------- Run | Yrd Mat Sub Rec Scr Fac Fac Upp Upp War Pro Res Qua Distress Signals 15 | . 4 . . . 1 . 1 . . . 8 1 Communications Jammed 2 | . . . . . . 2 . . . . . . Distress Signals 2 | . . . . . . 2 . . . . . . Times Spotted 201 | . 33 8 . . 30 24 3 1 30 6 36 30 Peak Tracking Total 20 | . 5 3 . . 7 4 2 1 10 3 20 14 Tactical Retreats 13 | . 1 . . . 2 2 . . . . 4 4 Traps | -11 -10 -10 -7 -7 -5 -4 -4 -4 -4 -3 -3 -3 ------- Run | Yrd Mat Sub Rec Scr Fac Fac Upp Upp War Pro Res Qua Traps Triggered 11 | . 5 1 . . 4 1 . . . . . . Indirectly 1 | . . . . . 1 . . . . . . . Trap Hack Attempts . | . . . . . . . . . . . . . Triggered . | . . . . . . . . . . . . . Disarmed . | . . . . . . . . . . . . . Reprogrammed . | . . . . . . . . . . . . . Reused . | . . . . . . . . . . . . . Traps Extracted . | . . . . . . . . . . . . . Installed . | . . . . . . . . . . . . . Triggered . | . . . . . . . . . . . . . Most Traps Carried 2 | . . . . 2 2 2 . . . . . . Machines | -11 -10 -10 -7 -7 -5 -4 -4 -4 -4 -3 -3 -3 ---------- Run | Yrd Mat Sub Rec Scr Fac Fac Upp Upp War Pro Res Qua Machines Disabled 24 | . . 3 . . 8 6 . . 1 . 3 3 Max in Single Turn 2 | . . . . . 1 2 . . 1 . 1 1 Garrison Access 1 | . . . . . . . . . . . 1 . Machines Repaired . | . . . . . . . . . . . . . Machines Dismantled . | . . . . . . . . . . . . . Machines Sabotaged . | . . . . . . . . . . . . . Overloaded Fab Kills . | . . . . . . . . . . . . . Hacking | -11 -10 -10 -7 -7 -5 -4 -4 -4 -4 -3 -3 -3 --------- Run | Yrd Mat Sub Rec Scr Fac Fac Upp Upp War Pro Res Qua Machines Accessed 58 | . 8 . 2 5 16 7 1 . 4 . 9 6 Terminals 28 | . 6 . 1 . 8 4 . . . . 3 6 Fabricators 4 | . . . . . 3 . . . . . 1 . Repair Stations . | . . . . . . . . . . . . . Recycling Units 9 | . 2 . 1 . 3 1 . . . . 2 . Scanalyzers 6 | . . . . . 1 2 . . . . 3 . Garrison Access 1 | . . . . . 1 . . . . . . . Total Hacks 159 | . 22 . 5 36 31 24 1 . 11 . 20 9 Successful 98 | . 10 . 1 36 13 16 1 . 11 . 5 5 Failed 59 | . 11 . 4 . 18 7 . . . . 15 4 Catastrophic 13 | . . . . . 6 3 . . . . 2 2 Database Lockouts 2 | . 1 . . . . 1 . . . . . . Manual 49 | . 18 . 3 . 12 8 . . . . 7 1 Terminals 65 | . 18 . 3 . 17 12 . . . . 6 9 Fabricators 6 | . . . . . 4 . . . . . 2 . Repair Stations . | . . . . . . . . . . . . . Recycling Units 18 | . 4 . 2 . 5 1 . . . . 6 . Scanalyzers 19 | . . . . . 2 11 . . . . 6 . Garrison Access 3 | . . . . . 3 . . . . . . . Terminal Hacks 66 | . 3 . . 36 5 3 1 . 11 . 2 5 Record 49 | . . . . 35 . . . . 10 . . 4 Robot Analysis 1 | . 1 . . . . . . . . . . . Open Door 4 | . . . . . . . 1 . 1 . 1 1 Unreport Threat 4 | . . . . . 2 2 . . . . . . Locate Traps 2 | . 2 . . . . . . . . . . . Transport Status 1 | . . . . . 1 . . . . . . . Recall Investigation 1 | . . . . . . . . . . . 1 . Recall Extermination 1 | . . . . . 1 . . . . . . . Hauler Manifests 2 | . . . . . 1 1 . . . . . . Proto ID Catalog 1 | . . . . 1 . . . . . . . . Fabricator Hacks 2 | . . . . . 2 . . . . . . . Network Status 2 | . . . . . 2 . . . . . . . Repair Station Hacks . | . . . . . . . . . . . . . Recycling Unit Hacks 2 | . 1 . 1 . . . . . . . . . Retrieve Components 2 | . 1 . 1 . . . . . . . . . Scanalyzer 11 | . . . . . 1 8 . . . . 2 . Retrieve Study 11 | . . . . . 1 8 . . . . 2 . Garrison Access Hacks . | . . . . . . . . . . . . . Unauthorized Hacks 17 | . 6 . . . 5 5 . . . . 1 . Terminals 10 | . 4 . . . 2 4 . . . . . . Track 1 | . . . . . . 1 . . . . . . Assimilate 2 | . . . . . . 2 . . . . . . Botnet 7 | . 4 . . . 2 1 . . . . . . Fabricators . | . . . . . . . . . . . . . Repair Stations . | . . . . . . . . . . . . . Recycling Units 7 | . 2 . . . 3 1 . . . . 1 . Tunnel 2 | . 2 . . . . . . . . . . . Fedlink 5 | . . . . . 3 1 . . . . 1 . Scanalyzers . | . . . . . . . . . . . . . Garrison Access . | . . . . . . . . . . . . . Data Cores Recovered . | . . . . . . . . . . . . . Used . | . . . . . . . . . . . . . Hacking Detections 40 | . 6 . 1 . 14 5 . . . . 9 5 Full Trace Events 3 | . 1 . . . . . . . . . 1 1 Feedback Events 1 | . . . . . . . . . . . 1 . Corruption 1 | . . . . . . . . . . . 1 . Feedback Blocked . | . . . . . . . . . . . . . Robot Schematics Acquired . | . . . . . . . . . . . . . Robots Built . | . . . . . . . . . . . . . Authchips . | . . . . . . . . . . . . . Time . | . . . . . . . . . . . . . Total Robot Build Rating . | . . . . . . . . . . . . . Part Schematics Acquired . | . . . . . . . . . . . . . Parts Built . | . . . . . . . . . . . . . Authchips . | . . . . . . . . . . . . . Time . | . . . . . . . . . . . . . Total Part Build Rating . | . . . . . . . . . . . . . Part Studies Acquired 11 | . . . . . 1 8 . . . . 2 . Parts Repaired . | . . . . . . . . . . . . . Time . | . . . . . . . . . . . . . Parts Recycled . | . . . . . . . . . . . . . Recycled Matter . | . . . . . . . . . . . . . Retrieved Matter . | . . . . . . . . . . . . . Retrieved Components 4 | . 4 . . . . . . . . . . . Parts Scanalyzed . | . . . . . . . . . . . . . Part Schematics Acquired . | . . . . . . . . . . . . . Parts Damaged . | . . . . . . . . . . . . . Bothacking | -11 -10 -10 -7 -7 -5 -4 -4 -4 -4 -3 -3 -3 ------------ Run | Yrd Mat Sub Rec Scr Fac Fac Upp Upp War Pro Res Qua Used RIF Installer . | . . . . . . . . . . . . . Robots Hacked . | . . . . . . . . . . . . . Non-combat . | . . . . . . . . . . . . . Combat . | . . . . . . . . . . . . . Robot Hacks Applied . | . . . . . . . . . . . . . Relay Couplers Released 2 | . . . . . . . . . . . 2 . Machine Destruction 2 | . . . . . . . . . . . 2 . Fabnet Peak Effective % . | . . . . . . . . . . . . . Robots Rewired . | . . . . . . . . . . . . . Allies Hacked . | . . . . . . . . . . . . . Hacks Repelled . | . . . . . . . . . . . . . Allies | -11 -10 -10 -7 -7 -5 -4 -4 -4 -4 -3 -3 -3 -------- Run | Yrd Mat Sub Rec Scr Fac Fac Upp Upp War Pro Res Qua Total Allies 13 | . . 12 . . . 1 . . . . . . Largest Group 11 | . . 11 6 6 6 1 . . . . . . Highest-Rated Group 210 | . . 210 115 115 115 10 . . . . . . Highest-Rated Ally 20 | . . 20 20 20 20 10 . . . . . . Initial UFD Resources 80 | . . . . . 37 57 67 67 67 70 70 80 Total Orders 10 | . . . . . . . 6 2 . . . 2 EXPLORE 2 | . . . . . . . 1 . . . . 1 RETURN 8 | . . . . . . . 5 2 . . . 1 Ally Attacks 83 | . . 52 . . 31 . . . . . . . Total Damage 1649 | . . 1066 . . 583 . . . . . . . Kills 13 | . . 10 . . 3 . . . . . . . Allies Corrupted . | . . . . . . . . . . . . . Allies Melted . | . . . . . . . . . . . . . Intel | -11 -10 -10 -7 -7 -5 -4 -4 -4 -4 -3 -3 -3 ------- Run | Yrd Mat Sub Rec Scr Fac Fac Upp Upp War Pro Res Qua Active Infowar (turns) 10078 | 39 1413 309 . . 2187 1943 1349 861 622 541 694 120 Sensors 6813 | . . . . . 803 1943 1349 861 622 541 694 . Terrain 366 | . . . . . . . . 158 . 88 . 120 Seismic 3145 | 39 1413 309 . . 1384 . . . . . . . Jamming 2566 | . . . . . 771 1790 . . . . 5 . Robot Analysis Total 1 | . 1 . . . . . . . . . . . Derelict Logs Recovered 7 | . . . . 3 . . 2 2 . . . . Drone Launches 17 | . . . . . . . 10 6 . . . 1 Drone Recoveries 17 | . . . . . . . 10 6 . . . 1 Exploration | -11 -10 -10 -7 -7 -5 -4 -4 -4 -4 -3 -3 -3 ------------- Run | Yrd Mat Sub Rec Scr Fac Fac Upp Upp War Pro Res Qua Turns Passed 14717 | 213 1461 2090 327 1734 2223 1943 1349 861 622 541 778 575 Spaces Moved 9996 | 114 660 1268 241 1367 1172 924 691 528 817 631 1144 439 Core 342 | 3 . . . . . . . . . . 141 198 Treads 3410 | 111 660 1072 . 34 843 690 . . . . . . Legs . | . . . . . . . . . . . . . Wheels 2100 | . . 196 241 1333 329 1 . . . . . . Hover 4116 | . . . . . . 233 691 528 817 631 1003 213 Flight 28 | . . . . . . . . . . . . 28 Fastest Speed 31 | 50 160 125 125 105 105 51 51 118 47 47 31 40 Average Speed 108 | 157 160 154 125 119 148 132 78 118 56 58 43 54 Slowest Speed 200 | 160 160 160 125 165 163 200 118 118 118 105 54 200 Overloaded Moves 8 | . . . . . . . . . . . 8 . Propulsion Burnouts . | . . . . . . . . . . . . . Robots Hopped . | . . . . . . . . . . . . . Potential Cave-ins 5 | . . . . . . . 5 . . . . . Cave-ins Triggered 1 | . . . . . . . 1 . . . . . Teleports 1 | . . . . . . . . . . . . 1 Exploration Rate (%) 58 | 6 98 69 56 87 38 26 77 68 89 70 35 44 Regions Visited 12 Branch Regions 8 Pre-discovered Areas 6 | . 2 1 . 2 1 . . . . . . . Known Exits Taken 6 | . . . . . 1 1 1 1 1 1 . . Unknown Exits Taken 6 | 1 1 1 1 1 . . . . . . 1 . Scrap Searched 16 | . . 1 . 4 . . 3 3 . 5 . . Spaces Dug 117 | . . . . . 21 22 34 8 . 8 20 4 Terrain Destroyed 291 | . . . . . 68 46 40 11 2 14 103 7 Melee 2 | . . . . . . . . . . . . 2 Projectile 209 | . . . . . 68 46 40 11 2 14 23 5 AOE 80 | . . . . . . . . . . . 80 . Terrain Rammed . | . . . . . . . . . . . . . Walls Destroyed . | . . . . . . . . . . . . . Machines Disabled . | . . . . . . . . . . . . . Actions | -11 -10 -10 -7 -7 -5 -4 -4 -4 -4 -3 -3 -3 --------- Run | Yrd Mat Sub Rec Scr Fac Fac Upp Upp War Pro Res Qua Total 13205 | 133 944 1353 265 1464 1517 1496 1447 749 959 771 1360 747 Wait 2411 | 3 205 28 15 72 192 432 693 202 108 111 135 215 Move 9983 | 113 659 1267 240 1366 1171 923 689 527 816 630 1143 439 Hop . | . . . . . . . . . . . . . Pick Up 86 | 4 9 8 1 11 18 12 4 . 8 1 5 5 Fast Attach 68 | 7 . 2 2 . 22 16 2 . 3 1 2 11 Attach 44 | . 4 1 1 1 7 7 2 2 2 1 7 9 Detach 17 | . . . 1 . . . 1 3 1 1 3 7 Swap 47 | . 3 2 1 4 8 8 3 1 5 5 7 . Drop 88 | . 3 2 3 10 24 16 7 1 7 2 8 5 Fire 422 | 6 61 43 1 . 73 81 45 13 9 19 50 21 Melee 6 | . . . . . 2 . . . . . . 4 Ram 9 | . . . . . . . . . . . . 9 Kick . | . . . . . . . . . . . . . Crush 1 | . . . . . . 1 . . . . . . Escape Stasis 23 | . . . . . . . 1 . . . . 22 Rewire . | . . . . . . . . . . . . . Trap . | . . . . . . . . . . . . . Miscellaneous . | . . . . . . . . . . . . . Route ------- -11/Scrapyard -10/Materials (discovered 6 exits: [*Mat x3] / [*Min x2] / [*Sub]) -10/Subcaves (discovered 4 exits: [*Mat x2] / *Rec / *Scr) -7/Recycling (discovered 2 exits: *Fac / *Scr) -7/Scraptown (discovered 2 exits: *Fac x2) -5/Factory -4/Factory (discovered 3 exits: *Res x2 / *Upp) -4/Upper Caves -4/Upper Caves (discovered 2 exits: *Res / *War) -4/Warlord -3/Proximity Caves -3/Research (discovered 2 exits: *Qua x2) -3/Quarantine History --------- Turn | Location | Event 17 | -11/Scrapyard | Discovered new exit (range 15) 214 | -11/Scrapyard | Entered Materials 288 | -10/Materials | Discovered new exit (range 12) 333 | -10/Materials | Build established: Mutant 377 | -10/Materials | Discovered new exit (range 15) 806 | -10/Materials | Discovered new exit (range 15) 1107 | -10/Materials | Discovered new exit (range 16) 1114 | -10/Materials | Derelicts attacked the area 1342 | -10/Materials | Central database locked down 1398 | -10/Materials | Discovered new exit (range 16) 1554 | -10/Materials | Core integrity fell below 50% 1663 | -10/Materials | Discovered new exit (range 8) 1675 | -10/Materials | Entered Subcaves 1676 | -10/Subcaves | Approached by a straggling Scientist 1975 | -10/Subcaves | Visited triangular shrine 1984 | -10/Subcaves | Found Prototype Device 1984 | -10/Subcaves | Identified V3-11A's Pendant 1989 | -10/Subcaves | Befriended Subdweller 2018 | -10/Subcaves | Learned location of Zion (-7) 2018 | -10/Subcaves | Met a Zionite searching for "candidates" 2019 | -10/Subcaves | Discovered new exit (range 3) 2053 | -10/Subcaves | Shifting Twisted Machinery released Sub. Monowheel 2219 | -10/Subcaves | Befriended Subdweller 2219 | -10/Subcaves | Befriended Subdweller 2256 | -10/Subcaves | Discovered new exit (range 9) 2264 | -10/Subcaves | Ambushed by Subdwellers from Twisted Machinery 2264 | -10/Subcaves | Befriended Subdweller 2264 | -10/Subcaves | Befriended Subdweller 2269 | -10/Subcaves | Befriended Subdweller 2269 | -10/Subcaves | Befriended Subdweller 2366 | -10/Subcaves | A swath of the cavern ceiling suddenly collapsed 2520 | -10/Subcaves | Scientist uncovered a shortcut to Scraptown 2989 | -10/Subcaves | Shifting Twisted Machinery released Sub. Laser 2990 | -10/Subcaves | Shifting Twisted Machinery released Scrap Shield 3499 | -10/Subcaves | Befriended Subdweller 3499 | -10/Subcaves | Befriended Subdweller 3597 | -10/Subcaves | A Subdweller sparked back to life 3597 | -10/Subcaves | A Subdweller sparked back to life 3599 | -10/Subcaves | Befriended Subdweller 3599 | -10/Subcaves | Befriended Subdweller 3599 | -10/Subcaves | Befriended Subdweller 3700 | -10/Subcaves | Discovered new exit (range 8) 3701 | -10/Subcaves | Shifting Twisted Machinery released Riot Gun 3712 | -10/Subcaves | Shifting Twisted Machinery released Flamer 3724 | -10/Subcaves | Lost 5 allies 3735 | -10/Subcaves | A swath of the cavern ceiling suddenly collapsed 3765 | -10/Subcaves | Entered Recycling 3765 | -7/Recycling | Accompanied by 6 allies 3984 | -7/Recycling | Discovered new exit (range 15) 4042 | -7/Recycling | Scanned before Scraplab entrance 4064 | -7/Recycling | Entered Scraplab 4074 | -7/Recycling | Discovered new exit (range 3) 4092 | -7/Recycling | Entered Scraptown 4092 | -7/Scraptown | Accompanied by 6 allies 4092 | -7/Scraptown | System corruption cleaned by C-Scrubber 4144 | -7/Scraptown | Visited Spacefarers 4210 | -7/Scraptown | Visited Awakened 4270 | -7/Scraptown | Scanned Subdweller tech in exchange for log data 4279 | -7/Scraptown | Learned location of Warlord (-4) 4280 | -7/Scraptown | Learned Research interactive machine intel 4281 | -7/Scraptown | Learned location of Testing (-2) 4304 | -7/Scraptown | Discovered new exit (range 11) 4390 | -7/Scraptown | Heard Great Nut preacher, LISTEN AND RECITE! 4724 | -7/Scraptown | Visited UFD Registry 4724 | -7/Scraptown | Registered with UFD as "Matterbucket" 4751 | -7/Scraptown | Visited Shadow of the Wyrm 4763 | -7/Scraptown | Visited Science Testing Area 4770 | -7/Scraptown | Visited CPS Storage 4819 | -7/Scraptown | Visited LU-1G1's Boring Crew 4885 | -7/Scraptown | Visited Observation Area 4949 | -7/Scraptown | Visited Research Penetration Think Tank 4975 | -7/Scraptown | Visited Chapter 10 5061 | -7/Scraptown | Delivered Scrap Shield to a Scientist 5258 | -7/Scraptown | Visited Scrapoid Pod Storage 5264 | -7/Scraptown | Found Scrapoid Pod 5286 | -7/Scraptown | Visited A0-MCA Data Center 5297 | -7/Scraptown | Given an A- rating by A0-MCA 5299 | -7/Scraptown | Found A0-MCA's Component Scanner 5330 | -7/Scraptown | Visited Science Guys 5381 | -7/Scraptown | Visited Derelict Rescue Squad 5410 | -7/Scraptown | Visited Curators Association 5448 | -7/Scraptown | Visited Cartography Club 5480 | -7/Scraptown | Found Surveybot 17 Chip 5735 | -7/Scraptown | Met Optimus 5735 | -7/Scraptown | Accepted into 0bPrime 5810 | -7/Scraptown | Discovered new exit (range 3) 5826 | -7/Scraptown | Entered Factory 5826 | -5/Factory | Accompanied by 6 allies 5826 | -5/Factory | Evolved 10 slots: Power x1, Propulsion x2, Utility x6, Weapon x1 6519 | -5/Factory | Loaded intel: 8 recycling unit locations 6951 | -5/Factory | Learned location of Protoforge (-3) 6986 | -5/Factory | Build established: Tank 7170 | -5/Factory | Garrison activated, responded to threat 7255 | -5/Factory | Lost 3 parts (2u1w) 7258 | -5/Factory | Destroyed 7 combat bots 7602 | -5/Factory | Found Powered Armor 7905 | -5/Factory | Discovered new exit (range 6) 7913 | -5/Factory | Identified exit to Factory 8049 | -5/Factory | Entered another Factory area 8049 | -4/Factory | Evolved 2 slots: Propulsion x1, Utility x1 8386 | -4/Factory | Central database locked down 8658 | -4/Factory | Build established: Scientist-Tank 9379 | -4/Factory | Build established: Scavenger-Skirmisher 9775 | -4/Factory | Build established: Skirmisher 9866 | -4/Factory | Discovered new exit (range 4) 9897 | -4/Factory | Discovered new exit (range 5) 9899 | -4/Factory | Identified exit to Research 9981 | -4/Factory | Discovered new exit (range 12) 9982 | -4/Factory | Loaded intel: 8 recycling unit locations 9992 | -4/Factory | Identified exit to Upper Caves 9992 | -4/Factory | Entered Upper Caves 9994 | -4/Upper Caves | UFD Scientist delivered a prototype 9995 | -4/Upper Caves | Found Prototype Protection 10099 | -4/Upper Caves | Build established: Scavenger-Skirmisher 10114 | -4/Upper Caves | Found DCF Scrap (13 items) 10124 | -4/Upper Caves | Learned Research emergency access door positions 10153 | -4/Upper Caves | Learned Research trap positions 10600 | -4/Upper Caves | Identified Enh. Scrap Shield 10991 | -4/Upper Caves | Crushed by falling debris 11023 | -4/Upper Caves | Encountered a Warlord checkpoint 11023 | -4/Upper Caves | Discovered new exit (range 6) 11030 | -4/Upper Caves | Identified exit to Upper Caves 11341 | -4/Upper Caves | Entered another Upper Caves area 11425 | -4/Upper Caves | Encountered a Warlord checkpoint 11433 | -4/Upper Caves | Discovered exit to Research (range 16) 11918 | -4/Upper Caves | Attracted the attention of an 0b10 checkpoint 12044 | -4/Upper Caves | Learned Research emergency access door positions 12168 | -4/Upper Caves | Discovered new exit (range 10) 12186 | -4/Upper Caves | Identified exit to Warlord 12194 | -4/Upper Caves | Learned 4 Research zone layouts 12202 | -4/Upper Caves | Entered Warlord 12243 | -4/Warlord | System corruption cleaned by Quarantine Array 12350 | -4/Warlord | Rebuked by Warlord 12365 | -4/Warlord | Warlord's base attacked by MAIN.C 12543 | -4/Warlord | Found Prototype Energy Cannon 12544 | -4/Warlord | Found Prototype Energy Cannon 12547 | -4/Warlord | Found Prototype Launcher 12592 | -4/Warlord | Found Prototype Device 12592 | -4/Warlord | Identified Exp. Phase Shifter 12700 | -4/Warlord | Spotted Striker 12715 | -4/Warlord | Warlord forces counterattacked 12768 | -4/Warlord | Spotted Striker 12820 | -4/Warlord | Discovered new exit (range 9) 12824 | -4/Warlord | Identified exit to Proximity Caves 12824 | -4/Warlord | Entered Proximity Caves 12833 | -3/Proximity Caves | Lost 6 allies 13359 | -3/Proximity Caves | Discovered exit to Research (range 10) 13365 | -3/Proximity Caves | Ambushed by research squad 13365 | -3/Proximity Caves | Entered Research 13365 | -3/Research | Evolved 2 slots: Propulsion x1, Utility x1 13367 | -3/Research | Loaded intel: 95 trap records 13369 | -3/Research | Loaded intel: 43 interactive machine locations 13426 | -3/Research | Found Prototype Device 13426 | -3/Research | Identified Exp. Shield Generator 13650 | -3/Research | Discovered new exit (range 13) 13892 | -3/Research | Found Powered Armor 13934 | -3/Research | Loaded intel: 5 recycling unit locations 14046 | -3/Research | System corruption reached 10% 14046 | -3/Research | Identified Vortex Catalyst Activator 14051 | -3/Research | Lost 3 parts (1u2w) 14071 | -3/Research | Released all parts (7) 14082 | -3/Research | Core integrity fell below 50% 14090 | -3/Research | Destroyed 12 combat bots 14101 | -3/Research | Lost 13 parts (2p5n4u2w) 14139 | -3/Research | Discovered new exit (range 9) 14143 | -3/Research | Entered Quarantine 14342 | -3/Quarantine | Found Alien Artifact 14342 | -3/Quarantine | Identified Transdimensional Reconstructor 14342 | -3/Quarantine | Warped through subspace 14381 | -3/Quarantine | Found Alien Slashing Weapon 14381 | -3/Quarantine | Identified Sigix Broadsword 14393 | -3/Quarantine | Found Alien Artifact 14413 | -3/Quarantine | Build established: Mutant 14473 | -3/Quarantine | Found Alien Artifact 14473 | -3/Quarantine | Identified Subatomic Replicator 14548 | -3/Quarantine | Met incapacitated Sigix Warrior 14548 | -3/Quarantine | Lockdown squad dispatched 14550 | -3/Quarantine | Acquired the access code to the Sigix quarantine chamber 14551 | -3/Quarantine | Unlocked Sigix quarantine chamber 14555 | -3/Quarantine | Found Sigix Containment Pod 14571 | -3/Quarantine | Identified Dimensional Node Initializer 14571 | -3/Quarantine | Initialized slip node 14590 | -3/Quarantine | Core integrity fell below 20% 14604 | -3/Quarantine | Found Alien Artifact 14604 | -3/Quarantine | Identified Core Reset Matrix 14604 | -3/Quarantine | Used Core Reset Matrix 14608 | -3/Quarantine | Sensed 10 artifacts in vicinity 14618 | -3/Quarantine | Scanned by Researcher 14702 | -3/Quarantine | Found Prototype Device 14702 | -3/Quarantine | Identified Exp. Thermal Defense Suite 14717 | -3/Quarantine | Spotted Fortress 14718 | -3/Quarantine | Destroyed by Fortress with Enhanced Nova Cannon Last Messages --------------- 14656_ Unknown Processor tumbles out of TF Node. 14658_ Held in stasis. 14658_ C-55 Analyst is analyzing... 14662_ Critical hit (Burn: +50). 14662_ Held in stasis. 14662_ C-55 Analyst is analyzing... 14666_ Held in stasis. 14666_ C-55 Analyst is analyzing... 14666_ Slug penetrates C-55 Analyst. 14666_ Destroyed Unknown Processor. 14668_ Destroyed Unknown Special Weapon. 14676_ Acquired Unknown Hover Unit. 14676_ Identified Imp. Linear Gravjet. 14689_ ALERT: Potential suspicious activity detected, Programmers report to Quarantine Zone 1G. 14702_ Acquired Prototype Device. 14702_ Identified Exp. Thermal Defense Suite. 14706_ Acquired Unknown Flight Unit. 14706_ Identified Q-thruster. [Achievement: Nope] Map ----- +----------------------------------------------------+ | | | | | | | | | | | | | | | | | | | | | | | | | | | | | ####?????????????????????????????????????????????? | | #?????????????????????????????????????????????? | | #?????????????????????????????????????????????? | | = #?????????????????????????????????????????????? | | #?????????????????????????????????????????????? | | #?????????????????????????????????????????????? | | #?????????????????????????????????????????????? | | #?????????????????????????????????????????????? | | #?????????????????????????????????????????????? | | #?##################################??????????? | | /##### ????????? | | / u@ ????????? | | / ????????? | | / ????????? | | / u ?????????? | | ###### ?????????? | | ?????######################## ###??????????? | | ?????????????????????????????" ""#????????????? | | ??????????????????????????????"FFF""#????????????? | | ???????????????????????????????FFF""?????????????? | | ????????????????????????????????FF""?????????????? | | ?????????????????????????????????"""?????????????? | | ??????????????????????????????????#??????????????? | | ?????????????????????????????????????????????????? | | ?????????????????????????????????????????????????? | | ?????????????????????????????????????????????????? | | ?????????????????????????????????????????????????? | | ?????????????????????????????????????????????????? | | ?????????????????????????????????????????????????? | | ?????????????????????????????????????????????????? | | ?????????????????????????????????????????????????? | | ?????????????????????????????????????????????????? | | ?????????????????????????????????????????????????? | | ?????????????????????????????????????????????????? | | ?????????????????????????????????????????????????? | | ?????????????????????????????????????????????????? | +----------------------------------------------------+ Best States ------------- Heat Dissipation 84 Coolant Potential 120 Energy Generation 37 Energy Capacity 700 Matter Stores 300 Matter Capacity 300 Sight Range 16 Robot Scan Range 18 Terrain Scan Range 24 Terrain Scan Density 10 Jamming Range 16 Power Amplification 40 Base Temperature (-) 200 Armor Coverage 800 Resistance: KI 25 Resistance: TH 10 Propulsion Shielding 33 Evasion (%) 62 Targeting Accuracy 8 Target Analysis 6 Recoil Reduction 5 Particle Charging 20 Offensive Hacking 14 Item Schematics ----------------- None Robot Schematics ------------------ None Fabricated ------------ Nothing Repaired ---------- Nothing Studied --------- None Alien Tech Used ----------------- Transdimensional Reconstructor Sigix Broadsword Subatomic Replicator Dimensional Node Initializer Core Reset Matrix Achievements -------------- Alien Roots False Reunion Link The Feds Loot Taster Nice Directions, Buddy Nope SUBSUB Challenges ------------ None Game ------ Seed PoweredDeliveryAccelerator Manual? 0 Play Time 02:35:55 Cumulative 86.6 hours Start 2026.06.29 @ 16:36:36 End 2026.07.01 @ 14:10:58 Sessions 3 Manual Loads 0 Difficulty Rogue Special Mode None Game No. 84 Rogue 84 Adventurer 0 Explorer 0 Win Type - Total 2 Types 2/0/0/0/0/0/0/0/0/0 Lore% 63 Gallery% 47 Achievement% 41 Wizard Run 0 Options --------- Layout 1 ASCII 0 Keyboard 0 Movement Mouse Keybinds 0 Fullscreen 1 Font 32/SmallcapsGlow Map View 77x35 Zoom Use 0% Tactical HUD 1 Map Filters NONE Filters NONE Steam 1 RUN: fdb048d2-e5ab-427e-8718-d01dacf6f197